[Event "*** Titled Tuesday Blitz"]
[Site "Chess.com"]
[Date "2021.02.09"]
[Round "10"]
[White "Mikhail_Golubev"]
[Black "LogoCzar"]
[Result "1/2-1/2"]
[WhiteElo "2527"]
[BlackElo "2409"]
[TimeControl "180+1"]
[EndTime "11:56:00 PST"]
[Termination "Game drawn - insufficient material"]

1. e4 {[%clk 0:03:00.9]} 1... c6 {[%clk 0:03:00.2]} 2. d4 {[%clk 0:03:00]} 2...
d5 {[%clk 0:03:00.4]} 3. Nc3 {[%clk 0:03:00.8]} 3... dxe4 {[%clk 0:03:00.7]} 4.
Nxe4 {[%clk 0:03:01.7]} 4... Nf6 {[%clk 0:03:01.1]} 5. Nxf6+ {[%clk 0:03:01.3]}
5... gxf6 {[%clk 0:03:02]} 6. c3 {[%clk 0:02:59.4]} 6... Qd5 {[%clk 0:03:01.6]}
7. Qb3 {[%clk 0:02:57.6]} 7... Nd7 {[%clk 0:02:56.4]} 8. Ne2 {[%clk 0:02:50.6]}
8... e6 {[%clk 0:02:54.8]} 9. Nf4 {[%clk 0:02:48]} 9... Qxb3 {[%clk 0:02:47.7]}
10. axb3 {[%clk 0:02:47.1]} 10... c5 {[%clk 0:02:46.8]} 11. d5 {[%clk
0:02:42.8]} 11... Nb6 {[%clk 0:02:39.8]} 12. dxe6 {[%clk 0:02:32.6]} 12... fxe6
{[%clk 0:02:38]} 13. Bb5+ {[%clk 0:02:32.4]} 13... Kf7 {[%clk 0:02:35.1]} 14.
O-O {[%clk 0:02:27.5]} 14... e5 {[%clk 0:02:34.1]} 15. Nh5 {[%clk 0:02:15.5]}
15... Be6 {[%clk 0:02:29.3]} 16. f4 {[%clk 0:01:48]} 16... e4 {[%clk 0:02:15.1]}
17. f5 {[%clk 0:01:27.2]} 17... Bxb3 {[%clk 0:02:10.8]} 18. Re1 {[%clk
0:01:18.5]} 18... a6 {[%clk 0:02:06]} 19. Be2 {[%clk 0:01:18.3]} 19... c4 {[%clk
0:01:57.9]} 20. Ng3 {[%clk 0:01:13.9]} 20... Bc5+ {[%clk 0:01:57.1]} 21. Kh1
{[%clk 0:01:12.6]} 21... Bc2 {[%clk 0:01:53.2]} 22. Nxe4 {[%clk 0:01:09.7]}
22... Bxe4 {[%clk 0:01:50.5]} 23. Bh5+ {[%clk 0:01:09.3]} 23... Kg7 {[%clk
0:01:36]} 24. Rxe4 {[%clk 0:01:10.2]} 24... Rhd8 {[%clk 0:01:18.2]} 25. Rg4+
{[%clk 0:00:45.8]} 25... Kh8 {[%clk 0:01:09]} 26. Bh6 {[%clk 0:00:46.7]} 26...
Rg8 {[%clk 0:01:05.3]} 27. Rxg8+ {[%clk 0:00:35]} 27... Kxg8 {[%clk 0:00:55.3]}
28. Rd1 {[%clk 0:00:35.9]} 28... Bf8 {[%clk 0:00:53.4]} 29. Bc1 {[%clk
0:00:28.4]} 29... Be7 {[%clk 0:00:44.4]} 30. Bf3 {[%clk 0:00:28]} 30... Rb8
{[%clk 0:00:33.2]} 31. Bf4 {[%clk 0:00:27]} 31... Rd8 {[%clk 0:00:31.8]} 32.
Rxd8+ {[%clk 0:00:26.3]} 32... Bxd8 {[%clk 0:00:32.7]} 33. Bxb7 {[%clk
0:00:26.4]} 33... Na4 {[%clk 0:00:31.8]} 34. Bd5+ {[%clk 0:00:25.5]} 34... Kg7
{[%clk 0:00:30.7]} 35. Bxc4 {[%clk 0:00:26.4]} 35... Nxb2 {[%clk 0:00:27.7]} 36.
Bxa6 {[%clk 0:00:26.2]} 36... Ba5 {[%clk 0:00:21.6]} 37. c4 {[%clk 0:00:25.4]}
37... Nd3 {[%clk 0:00:20.1]} 38. Bd6 {[%clk 0:00:24.2]} 38... Bb4 {[%clk
0:00:19.3]} 39. Bxb4 {[%clk 0:00:23.1]} 39... Nxb4 {[%clk 0:00:20.2]} 40. Bb7
{[%clk 0:00:22.9]} 40... Kh6 {[%clk 0:00:20.2]} 41. h4 {[%clk 0:00:22.2]} 41...
Kh5 {[%clk 0:00:19.9]} 42. c5 {[%clk 0:00:17.1]} 42... Kxh4 {[%clk 0:00:19]} 43.
Bf3 {[%clk 0:00:16.2]} 43... Kg5 {[%clk 0:00:16.2]} 44. c6 {[%clk 0:00:13.8]}
44... Na6 {[%clk 0:00:12.3]} 45. g4 {[%clk 0:00:13.7]} 45... h5 {[%clk
0:00:11.2]} 46. gxh5 {[%clk 0:00:13.6]} 46... Kxf5 {[%clk 0:00:11.5]} 47. Kg2
{[%clk 0:00:13.7]} 47... Kg5 {[%clk 0:00:11.7]} 48. Kg3 {[%clk 0:00:13.6]} 48...
Nc7 {[%clk 0:00:11.5]} 49. Be4 {[%clk 0:00:13.4]} 49... Kxh5 {[%clk 0:00:09.1]}
50. Kf4 {[%clk 0:00:13.7]} 50... Kh6 {[%clk 0:00:07.9]} 51. Kf5 {[%clk 0:00:13]}
51... Kg7 {[%clk 0:00:08.3]} 52. Bf3 {[%clk 0:00:12.8]} 52... Kf7 {[%clk
0:00:08]} 53. Bd1 {[%clk 0:00:12.8]} 53... Ke7 {[%clk 0:00:07.9]} 54. Ba4 {[%clk
0:00:13.3]} 54... Kd6 {[%clk 0:00:06.1]} 55. Bb3 {[%clk 0:00:12.9]} 55... Kxc6
{[%clk 0:00:05.4]} 56. Kxf6 {[%clk 0:00:12.7]} 1/2-1/2

[Event "*** Titled Tuesday Blitz"]
[Site "Chess.com"]
[Date "2021.02.09"]
[Round "10"]
[White "dpopadic"]
[Black "Deepweb2020"]
[Result "0-1"]
[WhiteElo "2327"]
[BlackElo "2462"]
[TimeControl "180+1"]
[EndTime "11:56:06 PST"]
[Termination "Deepweb2020 won on time"]

1. e4 {[%clk 0:03:00.9]} 1... e5 {[%clk 0:02:57.8]} 2. Nf3 {[%clk 0:03:00.1]}
2... Nc6 {[%clk 0:02:52.7]} 3. Bb5 {[%clk 0:02:59.5]} 3... a6 {[%clk 0:02:52.7]}
4. Ba4 {[%clk 0:02:59.5]} 4... b5 {[%clk 0:02:52.6]} 5. Bb3 {[%clk 0:02:58.9]}
5... Nf6 {[%clk 0:02:52.6]} 6. O-O {[%clk 0:02:58]} 6... Bc5 {[%clk 0:02:52.4]}
7. a4 {[%clk 0:02:53.1]} 7... Rb8 {[%clk 0:02:52]} 8. c3 {[%clk 0:02:52.5]} 8...
d6 {[%clk 0:02:48.9]} 9. d4 {[%clk 0:02:52.2]} 9... Bb6 {[%clk 0:02:48.7]} 10.
a5 {[%clk 0:02:48.3]} 10... Ba7 {[%clk 0:02:47.2]} 11. h3 {[%clk 0:02:47.1]}
11... O-O {[%clk 0:02:45.2]} 12. Re1 {[%clk 0:02:46.5]} 12... h6 {[%clk
0:02:44.3]} 13. Be3 {[%clk 0:02:44]} 13... Ra8 {[%clk 0:02:44.4]} 14. Nbd2
{[%clk 0:02:42.2]} 14... Re8 {[%clk 0:02:43.1]} 15. Qc2 {[%clk 0:02:31.6]} 15...
Bb7 {[%clk 0:02:40]} 16. Red1 {[%clk 0:02:19.5]} 16... exd4 {[%clk 0:02:07.1]}
17. cxd4 {[%clk 0:02:16.6]} 17... Nb4 {[%clk 0:02:02.7]} 18. Bxf7+ {[%clk
0:02:10.2]} 18... Kxf7 {[%clk 0:01:58.2]} 19. Qb3+ {[%clk 0:02:09.8]} 19... Nbd5
{[%clk 0:01:49.9]} 20. exd5 {[%clk 0:02:04.1]} 20... Bxd5 {[%clk 0:00:39.9]} 21.
Qc2 {[%clk 0:02:03.1]} 21... Rc8 {[%clk 0:00:35.9]} 22. b4 {[%clk 0:01:56.6]}
22... Ne4 {[%clk 0:00:35.5]} 23. Rac1 {[%clk 0:01:43.7]} 23... Kg8 {[%clk
0:00:32.9]} 24. Nxe4 {[%clk 0:01:40.7]} 24... Bxe4 {[%clk 0:00:32.9]} 25. Qb3+
{[%clk 0:01:37.9]} 25... Kh8 {[%clk 0:00:32.8]} 26. Nd2 {[%clk 0:01:35.7]} 26...
Bf5 {[%clk 0:00:29]} 27. Qd5 {[%clk 0:01:25.6]} 27... Qf6 {[%clk 0:00:22.2]} 28.
Qb7 {[%clk 0:01:15.6]} 28... Bb8 {[%clk 0:00:19]} 29. Qxa6 {[%clk 0:01:06.6]}
29... Qg6 {[%clk 0:00:18.6]} 30. Kh1 {[%clk 0:01:05.4]} 30... Qh5 {[%clk
0:00:13.9]} 31. Qxb5 {[%clk 0:00:58.4]} 31... c5 {[%clk 0:00:12.8]} 32. Qf1
{[%clk 0:00:54.7]} 32... cxb4 {[%clk 0:00:09]} 33. a6 {[%clk 0:00:51.8]} 33...
d5 {[%clk 0:00:08.5]} 34. Nb3 {[%clk 0:00:43.7]} 34... Qg6 {[%clk 0:00:07.8]}
35. Nc5 {[%clk 0:00:41.2]} 35... Qd6 {[%clk 0:00:07.5]} 36. g3 {[%clk
0:00:33.7]} 36... Ba7 {[%clk 0:00:07.2]} 37. Kh2 {[%clk 0:00:23.1]} 37... Qg6
{[%clk 0:00:07.3]} 38. Qg2 {[%clk 0:00:13.9]} 38... Rb8 {[%clk 0:00:05.6]} 39.
Rd2 {[%clk 0:00:11.9]} 39... b3 {[%clk 0:00:05.4]} 40. Rb2 {[%clk 0:00:11.7]}
40... Bc2 {[%clk 0:00:04.5]} 41. Qxd5 {[%clk 0:00:09.4]} 41... Rbd8 {[%clk
0:00:04.5]} 42. Qc4 {[%clk 0:00:08.2]} 42... Bb8 {[%clk 0:00:03.8]} 43. Qc3
{[%clk 0:00:06.1]} 43... Qf7 {[%clk 0:00:03]} 44. Nxb3 {[%clk 0:00:02.8]} 44...
Qf3 {[%clk 0:00:02.4]} 0-1

[Event "*** Titled Tuesday Blitz"]
[Site "Chess.com"]
[Date "2021.02.09"]
[Round "10"]
[White "NoGalloNoParty"]
[Black "MaevskiyNikolay"]
[Result "0-1"]
[WhiteElo "2352"]
[BlackElo "2518"]
[TimeControl "180+1"]
[EndTime "11:56:07 PST"]
[Termination "MaevskiyNikolay won on time"]

1. d4 {[%clk 0:03:00]} 1... f5 {[%clk 0:02:59.7]} 2. g3 {[%clk 0:02:56.3]} 2...
Nf6 {[%clk 0:02:59.2]} 3. c4 {[%clk 0:02:56.6]} 3... e6 {[%clk 0:02:59.3]} 4.
Bg2 {[%clk 0:02:56]} 4... Be7 {[%clk 0:02:59.7]} 5. Nc3 {[%clk 0:02:56.1]} 5...
O-O {[%clk 0:02:53.9]} 6. Nf3 {[%clk 0:02:55.2]} 6... Ne4 {[%clk 0:02:53.6]} 7.
Qc2 {[%clk 0:02:52.4]} 7... d5 {[%clk 0:02:49.1]} 8. O-O {[%clk 0:02:51.7]} 8...
Bf6 {[%clk 0:02:48.2]} 9. Bf4 {[%clk 0:02:44.8]} 9... c6 {[%clk 0:02:42.7]} 10.
b4 {[%clk 0:02:35.1]} 10... Bd7 {[%clk 0:02:39.5]} 11. Be5 {[%clk 0:02:31.7]}
11... Be7 {[%clk 0:02:36.7]} 12. c5 {[%clk 0:02:21]} 12... Be8 {[%clk
0:02:36.1]} 13. a4 {[%clk 0:02:11.4]} 13... a6 {[%clk 0:02:25.8]} 14. Rfb1
{[%clk 0:02:07.9]} 14... Nd7 {[%clk 0:02:22.1]} 15. e3 {[%clk 0:01:59.2]} 15...
Bh5 {[%clk 0:02:03.8]} 16. b5 {[%clk 0:01:48.7]} 16... axb5 {[%clk 0:02:02.2]}
17. axb5 {[%clk 0:01:46.4]} 17... Rxa1 {[%clk 0:01:54.5]} 18. Rxa1 {[%clk
0:01:45.7]} 18... Nxc3 {[%clk 0:01:46]} 19. Qxc3 {[%clk 0:01:43.4]} 19... Bxf3
{[%clk 0:01:37.1]} 20. Bxf3 {[%clk 0:01:42.6]} 20... Nxe5 {[%clk 0:01:37]} 21.
dxe5 {[%clk 0:01:42.3]} 21... cxb5 {[%clk 0:01:37.2]} 22. c6 {[%clk 0:01:27.2]}
22... b4 {[%clk 0:01:23.7]} 23. Qc1 {[%clk 0:01:20.5]} 23... Qb6 {[%clk
0:01:11.9]} 24. cxb7 {[%clk 0:01:10.2]} 24... Qxb7 {[%clk 0:01:10.9]} 25. Be2
{[%clk 0:01:06.5]} 25... b3 {[%clk 0:01:04.5]} 26. Rb1 {[%clk 0:00:58.9]} 26...
Rb8 {[%clk 0:01:01.5]} 27. Qb2 {[%clk 0:00:54.2]} 27... Qb6 {[%clk 0:00:43.4]}
28. Bd1 {[%clk 0:00:52.3]} 28... Bc5 {[%clk 0:00:31.7]} 29. Kg2 {[%clk
0:00:48.3]} 29... d4 {[%clk 0:00:26.3]} 30. exd4 {[%clk 0:00:45.3]} 30... Bxd4
{[%clk 0:00:25.7]} 31. Qe2 {[%clk 0:00:13.9]} 31... b2 {[%clk 0:00:22]} 32. Qc4
{[%clk 0:00:13.5]} 32... Rd8 {[%clk 0:00:13.9]} 33. Bb3 {[%clk 0:00:11.8]} 33...
Re8 {[%clk 0:00:09.6]} 34. Rd1 {[%clk 0:00:11.3]} 34... Qb7+ {[%clk 0:00:07.7]}
35. Kh3 {[%clk 0:00:10.4]} 35... Bxf2 {[%clk 0:00:05.4]} 36. Rd2 {[%clk
0:00:10.5]} 36... b1=Q {[%clk 0:00:03]} 37. Rxf2 {[%clk 0:00:09.6]} 37... Q1xb3
{[%clk 0:00:03.2]} 38. Qh4 {[%clk 0:00:08.6]} 38... Q7b4 {[%clk 0:00:03.5]} 39.
Rf4 {[%clk 0:00:08.4]} 39... Qe7 {[%clk 0:00:03.5]} 40. Qh5 {[%clk 0:00:08.1]}
40... g6 {[%clk 0:00:03.4]} 41. Qh6 {[%clk 0:00:07.8]} 41... Qb1 {[%clk
0:00:03.5]} 42. Rf2 {[%clk 0:00:06]} 42... Qc2 {[%clk 0:00:03.2]} 43. Rg2 {[%clk
0:00:06.3]} 43... Qe4 {[%clk 0:00:03.1]} 44. Rf2 {[%clk 0:00:06]} 44... Qg4+
{[%clk 0:00:03.2]} 45. Kg2 {[%clk 0:00:05.8]} 45... Qb7+ {[%clk 0:00:03.4]} 46.
Kg1 {[%clk 0:00:05.6]} 46... Qd1+ {[%clk 0:00:03.2]} 47. Rf1 {[%clk 0:00:05.2]}
47... Qd4+ {[%clk 0:00:03.5]} 48. Rf2 {[%clk 0:00:04.8]} 48... Qbb6 {[%clk
0:00:03.8]} 49. Qg7+ {[%clk 0:00:01.7]} 49... Kxg7 {[%clk 0:00:03.6]} 0-1

[Event "*** Titled Tuesday Blitz"]
[Site "Chess.com"]
[Date "2021.02.09"]
[Round "10"]
[White "Nils_03"]
[Black "SkippingLaptop"]
[Result "0-1"]
[WhiteElo "2327"]
[BlackElo "2108"]
[TimeControl "180+1"]
[EndTime "11:56:12 PST"]
[Termination "SkippingLaptop won by resignation"]

1. e4 {[%clk 0:03:00.9]} 1... c5 {[%clk 0:02:58.9]} 2. f4 {[%clk 0:03:01]} 2...
Nc6 {[%clk 0:02:59.4]} 3. Nf3 {[%clk 0:03:00]} 3... g6 {[%clk 0:02:57.5]} 4. Bc4
{[%clk 0:02:58]} 4... Bg7 {[%clk 0:02:55.8]} 5. O-O {[%clk 0:02:56.7]} 5... e6
{[%clk 0:02:54.3]} 6. f5 {[%clk 0:02:53.7]} 6... d5 {[%clk 0:02:46.6]} 7. exd5
{[%clk 0:02:48.3]} 7... exd5 {[%clk 0:02:46]} 8. fxg6 {[%clk 0:02:46.1]} 8...
hxg6 {[%clk 0:02:41.2]} 9. Bb5 {[%clk 0:02:35.7]} 9... Ne7 {[%clk 0:02:30.4]}
10. d3 {[%clk 0:02:29.3]} 10... Bg4 {[%clk 0:02:25.2]} 11. h3 {[%clk 0:02:20.6]}
11... Bd7 {[%clk 0:02:11.2]} 12. Ng5 {[%clk 0:02:13.5]} 12... Ne5 {[%clk
0:02:07.7]} 13. Bxd7+ {[%clk 0:02:12.6]} 13... Qxd7 {[%clk 0:02:08.6]} 14. Bf4
{[%clk 0:02:06.3]} 14... N7c6 {[%clk 0:01:58.6]} 15. Nc3 {[%clk 0:02:03.2]}
15... O-O-O {[%clk 0:01:55.5]} 16. Qe1 {[%clk 0:01:40.5]} 16... f6 {[%clk
0:01:51.7]} 17. Nf3 {[%clk 0:01:38.2]} 17... g5 {[%clk 0:01:44.7]} 18. Bxe5
{[%clk 0:01:31]} 18... Nxe5 {[%clk 0:01:42.7]} 19. Nxe5 {[%clk 0:01:30.3]} 19...
fxe5 {[%clk 0:01:43]} 20. Qg3 {[%clk 0:01:31.1]} 20... e4 {[%clk 0:01:32.5]} 21.
dxe4 {[%clk 0:01:23.2]} 21... Bd4+ {[%clk 0:01:31.4]} 22. Kh1 {[%clk 0:01:19.9]}
22... g4 {[%clk 0:01:31]} 23. Rf5 {[%clk 0:00:33.3]} 23... dxe4 {[%clk
0:01:13.1]} 24. Qxg4 {[%clk 0:00:21.4]} 24... e3 {[%clk 0:00:58.4]} 25. Nd5
{[%clk 0:00:16.4]} 25... Rdg8 {[%clk 0:00:55.6]} 26. Qf3 {[%clk 0:00:16.2]}
26... Kb8 {[%clk 0:00:50.7]} 27. Rf7 {[%clk 0:00:16]} 27... Qd6 {[%clk
0:00:33.8]} 28. Nf4 {[%clk 0:00:12]} 28... Qc6 {[%clk 0:00:29.3]} 29. Qxc6
{[%clk 0:00:09.4]} 29... bxc6 {[%clk 0:00:30.2]} 30. c3 {[%clk 0:00:10.3]} 30...
Be5 {[%clk 0:00:28.8]} 31. Nd3 {[%clk 0:00:09.8]} 31... Bc7 {[%clk 0:00:21.2]}
32. Re1 {[%clk 0:00:09.7]} 32... Rg3 {[%clk 0:00:18.6]} 33. Nxc5 {[%clk
0:00:08]} 33... Re8 {[%clk 0:00:13.3]} 34. Na6+ {[%clk 0:00:08]} 34... Kb7
{[%clk 0:00:12.3]} 35. Nxc7 {[%clk 0:00:08.3]} 35... Re4 {[%clk 0:00:11.3]} 36.
Nd5+ {[%clk 0:00:08.3]} 36... Ka6 {[%clk 0:00:10]} 37. Nf6 {[%clk 0:00:08.1]}
37... Re6 {[%clk 0:00:09.4]} 38. Ng4 {[%clk 0:00:08.1]} 38... e2 {[%clk
0:00:08.9]} 39. Rf3 {[%clk 0:00:08.1]} 39... Rxf3 {[%clk 0:00:08.3]} 40. gxf3
{[%clk 0:00:09]} 40... Kb5 {[%clk 0:00:08.8]} 41. Kg2 {[%clk 0:00:09.6]} 41...
Kc4 {[%clk 0:00:09.7]} 42. Kf2 {[%clk 0:00:10.3]} 42... Kd3 {[%clk 0:00:09.7]}
43. Nh2 {[%clk 0:00:09.3]} 43... Kd2 {[%clk 0:00:09.1]} 44. f4 {[%clk
0:00:09.3]} 44... Re3 {[%clk 0:00:08]} 45. Nf3+ {[%clk 0:00:09.1]} 45... Rxf3+
{[%clk 0:00:08.2]} 46. Kxf3 {[%clk 0:00:08]} 46... Kxe1 {[%clk 0:00:09.1]} 47.
f5 {[%clk 0:00:05.7]} 47... Kd1 {[%clk 0:00:09.3]} 48. f6 {[%clk 0:00:06.6]}
48... e1=Q {[%clk 0:00:09.6]} 49. f7 {[%clk 0:00:07.5]} 49... Qf1+ {[%clk
0:00:09.8]} 50. Ke3 {[%clk 0:00:08.4]} 50... Qxf7 {[%clk 0:00:10]} 51. h4 {[%clk
0:00:09.3]} 51... Qxa2 {[%clk 0:00:09.7]} 52. h5 {[%clk 0:00:10.2]} 52... Qxb2
{[%clk 0:00:10]} 53. h6 {[%clk 0:00:11.1]} 53... Qxc3+ {[%clk 0:00:10.4]} 54.
Kf4 {[%clk 0:00:11]} 54... Qh8 {[%clk 0:00:11.3]} 55. Kg5 {[%clk 0:00:11.2]}
55... c5 {[%clk 0:00:11.6]} 0-1

[Event "*** Titled Tuesday Blitz"]
[Site "Chess.com"]
[Date "2021.02.09"]
[Round "10"]
[White "sorrm8thatscheckm8"]
[Black "MatthewG-p4p"]
[Result "0-1"]
[WhiteElo "2607"]
[BlackElo "2835"]
[TimeControl "180+1"]
[EndTime "11:56:13 PST"]
[Termination "MatthewG-p4p won by resignation"]

1. d4 {[%clk 0:02:50.4]} 1... Nf6 {[%clk 0:02:45.9]} 2. c4 {[%clk 0:02:49.6]}
2... c5 {[%clk 0:02:46.1]} 3. d5 {[%clk 0:02:49.6]} 3... e6 {[%clk 0:02:45.6]}
4. Nf3 {[%clk 0:02:49.3]} 4... exd5 {[%clk 0:02:45.9]} 5. cxd5 {[%clk
0:02:50.2]} 5... d6 {[%clk 0:02:46.8]} 6. e4 {[%clk 0:02:49.9]} 6... g6 {[%clk
0:02:47.5]} 7. Bd3 {[%clk 0:02:49.6]} 7... Bg7 {[%clk 0:02:47.8]} 8. h3 {[%clk
0:02:50.1]} 8... O-O {[%clk 0:02:48.3]} 9. O-O {[%clk 0:02:50.6]} 9... b5 {[%clk
0:02:44.2]} 10. Re1 {[%clk 0:02:47.4]} 10... a6 {[%clk 0:02:40.9]} 11. a4 {[%clk
0:02:46]} 11... c4 {[%clk 0:02:34.2]} 12. Bf1 {[%clk 0:02:45.8]} 12... Bb7
{[%clk 0:02:34.9]} 13. axb5 {[%clk 0:02:43.3]} 13... axb5 {[%clk 0:02:35.8]} 14.
Rxa8 {[%clk 0:02:43.5]} 14... Bxa8 {[%clk 0:02:36.7]} 15. Nc3 {[%clk 0:02:44.2]}
15... Qa5 {[%clk 0:02:12.7]} 16. Bd2 {[%clk 0:02:38.4]} 16... Re8 {[%clk
0:02:08.7]} 17. e5 {[%clk 0:02:28.2]} 17... dxe5 {[%clk 0:01:55]} 18. Nxe5
{[%clk 0:02:22.5]} 18... Qa6 {[%clk 0:01:46]} 19. Bf4 {[%clk 0:02:09.5]} 19...
Rd8 {[%clk 0:01:29.3]} 20. Qa1 {[%clk 0:01:58.8]} 20... Nxd5 {[%clk 0:01:15.8]}
21. Nxd5 {[%clk 0:01:49.5]} 21... Bxd5 {[%clk 0:01:10.3]} 22. Qxa6 {[%clk
0:01:45.7]} 22... Nxa6 {[%clk 0:01:11.2]} 23. b3 {[%clk 0:01:38.1]} 23... Re8
{[%clk 0:01:01.7]} 24. bxc4 {[%clk 0:01:32.8]} 24... bxc4 {[%clk 0:00:58.1]} 25.
Rd1 {[%clk 0:01:13]} 25... Bxe5 {[%clk 0:00:54.5]} 26. Rxd5 {[%clk 0:01:12.1]}
26... Bxf4 {[%clk 0:00:53.4]} 27. Bxc4 {[%clk 0:01:09.5]} 27... Re1+ {[%clk
0:00:52.3]} 28. Bf1 {[%clk 0:01:09.5]} 28... Bh2+ {[%clk 0:00:52.2]} 29. Kxh2
{[%clk 0:01:08.3]} 29... Rxf1 {[%clk 0:00:53.1]} 30. Kg3 {[%clk 0:01:04.4]}
30... Nc7 {[%clk 0:00:53.1]} 31. Rd8+ {[%clk 0:01:03]} 31... Kg7 {[%clk
0:00:52.9]} 32. Rd7 {[%clk 0:01:03.8]} 32... Ne6 {[%clk 0:00:53.5]} 33. Ra7
{[%clk 0:01:00.4]} 33... h5 {[%clk 0:00:52]} 34. h4 {[%clk 0:00:56.5]} 34... Nd4
{[%clk 0:00:52.2]} 35. Ra4 {[%clk 0:00:49.2]} 35... Nf5+ {[%clk 0:00:51.8]} 36.
Kf3 {[%clk 0:00:46.9]} 36... Rd1 {[%clk 0:00:47.8]} 37. g3 {[%clk 0:00:34.2]}
37... Rd3+ {[%clk 0:00:46.5]} 38. Ke2 {[%clk 0:00:31.6]} 38... Rd4 {[%clk
0:00:45.5]} 39. Ra7 {[%clk 0:00:28.7]} 39... Rb4 {[%clk 0:00:45.7]} 40. Ra2
{[%clk 0:00:26.2]} 40... Nd6 {[%clk 0:00:38]} 41. Kf3 {[%clk 0:00:23.6]} 41...
Nc4 {[%clk 0:00:36]} 42. Rc2 {[%clk 0:00:20.1]} 42... Kf6 {[%clk 0:00:36.5]} 43.
Kg2 {[%clk 0:00:17.7]} 43... Ke5 {[%clk 0:00:35.1]} 44. Rc1 {[%clk 0:00:16.7]}
44... Nd6 {[%clk 0:00:31.6]} 45. Re1+ {[%clk 0:00:13.2]} 45... Re4 {[%clk
0:00:27.6]} 46. Ra1 {[%clk 0:00:11.2]} 46... Re2 {[%clk 0:00:27.9]} 47. Ra5+
{[%clk 0:00:09.7]} 47... Ke6 {[%clk 0:00:27.8]} 48. Ra6 {[%clk 0:00:08.4]} 48...
Rd2 {[%clk 0:00:25.8]} 49. Kf3 {[%clk 0:00:06.8]} 49... Kf6 {[%clk 0:00:20]} 50.
Kg2 {[%clk 0:00:05.8]} 50... Kg7 {[%clk 0:00:20.2]} 51. Ra4 {[%clk 0:00:04.7]}
51... f5 {[%clk 0:00:20.3]} 52. Ra7+ {[%clk 0:00:02.7]} 52... Kh6 {[%clk
0:00:20.3]} 53. Kg1 {[%clk 0:00:03.1]} 53... Ne4 {[%clk 0:00:20.6]} 0-1

[Event "*** Titled Tuesday Blitz"]
[Site "Chess.com"]
[Date "2021.02.09"]
[Round "10"]
[White "alexrustemov"]
[Black "Heineccius"]
[Result "1-0"]
[WhiteElo "2747"]
[BlackElo "2564"]
[TimeControl "180+1"]
[EndTime "11:56:13 PST"]
[Termination "alexrustemov won by resignation"]

1. d4 {[%clk 0:03:00.9]} 1... Nf6 {[%clk 0:02:59.6]} 2. c4 {[%clk 0:03:00.3]}
2... e6 {[%clk 0:03:00]} 3. Nf3 {[%clk 0:03:00.6]} 3... Bb4+ {[%clk 0:02:59.9]}
4. Bd2 {[%clk 0:03:00.2]} 4... a5 {[%clk 0:03:00.3]} 5. g3 {[%clk 0:03:00.3]}
5... b6 {[%clk 0:03:00.2]} 6. Bg2 {[%clk 0:03:00.4]} 6... Bb7 {[%clk 0:03:00.7]}
7. O-O {[%clk 0:03:00.7]} 7... O-O {[%clk 0:03:01.1]} 8. Bf4 {[%clk 0:02:53]}
8... Be7 {[%clk 0:03:00.4]} 9. Nc3 {[%clk 0:02:52.9]} 9... Ne4 {[%clk 0:03:00]}
10. Nb5 {[%clk 0:02:53.2]} 10... Na6 {[%clk 0:02:36.9]} 11. Nd2 {[%clk 0:02:25]}
11... Nxd2 {[%clk 0:02:15.5]} 12. Qxd2 {[%clk 0:02:19.5]} 12... Bxg2 {[%clk
0:02:13.3]} 13. Kxg2 {[%clk 0:02:20.4]} 13... d5 {[%clk 0:02:05.5]} 14. b3
{[%clk 0:02:19.3]} 14... c6 {[%clk 0:01:58.2]} 15. Nc3 {[%clk 0:02:18.3]} 15...
dxc4 {[%clk 0:01:15.8]} 16. bxc4 {[%clk 0:02:17.4]} 16... b5 {[%clk 0:01:16.4]}
17. c5 {[%clk 0:01:58.5]} 17... e5 {[%clk 0:01:08.4]} 18. Bxe5 {[%clk
0:01:54.6]} 18... Nxc5 {[%clk 0:01:04.9]} 19. Rfd1 {[%clk 0:01:52.9]} 19... Ne6
{[%clk 0:00:48.8]} 20. d5 {[%clk 0:01:52.1]} 20... cxd5 {[%clk 0:00:44.5]} 21.
Nxb5 {[%clk 0:01:49.1]} 21... d4 {[%clk 0:00:26.4]} 22. Nxd4 {[%clk 0:01:48.4]}
22... Qd5+ {[%clk 0:00:24.9]} 23. Nf3 {[%clk 0:01:48.2]} 23... Qe4 {[%clk
0:00:24.3]} 24. Qd3 {[%clk 0:01:45.2]} 24... Qa4 {[%clk 0:00:23.2]} 25. Qd7
{[%clk 0:01:39.4]} 25... Qa3 {[%clk 0:00:18]} 26. Rd3 {[%clk 0:01:34]} 26... Qb4
{[%clk 0:00:15.6]} 27. a3 {[%clk 0:01:33.9]} 27... Qc5 {[%clk 0:00:15]} 28. Rd5
{[%clk 0:01:31.4]} 28... Qa7 {[%clk 0:00:14.9]} 29. Qxa7 {[%clk 0:01:19.3]}
29... Rxa7 {[%clk 0:00:15.8]} 30. a4 {[%clk 0:01:19.9]} 30... Bb4 {[%clk
0:00:15.5]} 31. Rad1 {[%clk 0:01:13.5]} 31... Re8 {[%clk 0:00:15.9]} 32. Nd4
{[%clk 0:01:03.8]} 32... Nxd4 {[%clk 0:00:14.7]} 33. Bxd4 {[%clk 0:01:04.7]}
33... Rae7 {[%clk 0:00:13.9]} 34. e3 {[%clk 0:01:04]} 34... Re4 {[%clk
0:00:13.9]} 35. Rc1 {[%clk 0:01:02.9]} 35... h6 {[%clk 0:00:14]} 36. h4 {[%clk
0:01:02.1]} 36... R4e7 {[%clk 0:00:14.1]} 37. h5 {[%clk 0:01:01.9]} 37... Rb7
{[%clk 0:00:14.3]} 38. Rc6 {[%clk 0:01:00.4]} 38... Be1 {[%clk 0:00:14.1]} 39.
Rb5 {[%clk 0:00:56.7]} 39... Rd7 {[%clk 0:00:13.3]} 40. Kf3 {[%clk 0:00:51.7]}
40... Bb4 {[%clk 0:00:13.3]} 41. g4 {[%clk 0:00:49.2]} 41... Rdd8 {[%clk
0:00:11.2]} 42. Rb7 {[%clk 0:00:48.3]} 42... Rc8 {[%clk 0:00:11.2]} 43. Rxc8
{[%clk 0:00:39]} 43... Rxc8 {[%clk 0:00:12.1]} 44. Ra7 {[%clk 0:00:28.5]} 44...
Rc2 {[%clk 0:00:11.6]} 45. Ra8+ {[%clk 0:00:25.9]} 45... Kh7 {[%clk 0:00:11.1]}
46. Ra7 {[%clk 0:00:25.4]} 46... Kg8 {[%clk 0:00:11.3]} 47. Bb6 {[%clk
0:00:17.2]} 47... Ra2 {[%clk 0:00:11]} 48. Bxa5 {[%clk 0:00:15.9]} 48... Rxa4
{[%clk 0:00:09.9]} 49. Bb6 {[%clk 0:00:16.3]} 49... Rxa7 {[%clk 0:00:10.3]} 50.
Bxa7 {[%clk 0:00:16.9]} 50... Kf8 {[%clk 0:00:10.2]} 51. Ke4 {[%clk 0:00:16.3]}
51... Ke7 {[%clk 0:00:10.4]} 52. Kd5 {[%clk 0:00:16.6]} 52... Be1 {[%clk
0:00:10.8]} 53. f3 {[%clk 0:00:16.4]} 53... Kf6 {[%clk 0:00:10.4]} 54. Bd4+
{[%clk 0:00:16.3]} 54... Kg5 {[%clk 0:00:10.5]} 55. Bxg7 {[%clk 0:00:16.9]}
55... Bf2 {[%clk 0:00:09.5]} 56. Bd4 {[%clk 0:00:16.2]} 56... f5 {[%clk
0:00:09.6]} 57. gxf5 {[%clk 0:00:15.9]} 57... Kxh5 {[%clk 0:00:09.9]} 58. Ke6
{[%clk 0:00:14.7]} 58... Bg1 {[%clk 0:00:07.9]} 59. f6 {[%clk 0:00:14.8]} 1-0